Workbook

Sheet PLEASE READ
A1: The content in this spreadsheet is for informational purposes only. You should not construe any such information or other material as legal, tax, investment, financial, or other advice. You alone assume the sole responsibility of evaluating the merits and risks associated with the use of any information or other Content on the Site before making any decisions based on such information or other Content. You agree not to hold CFA Institute or its subsidiaries liable for any possible claim arising from any decision you make based on information or content made available to you through this spreadsheet.

Sheet 4.A.1.i
A1: Portfolio | B1: BMV | C1: Annual Return | D1: Weight (BMV) | E1: Contribution (BMV) | F1: Difference to Equal Weighted Mean | G1: Squared Difference (equal weighted mean) | H1: Difference to Asset Weighted Mean | I1: Squared Difference (asset weighted mean) | J1: Weighted Squared Difference
A2: 1 | B2: 100000 | C2: 0.052 | D2: =B2/$B$13 -> 0.03846153846 | E2: =C2*D2 -> 0.002 | F2: =(C2-$D$16) -> 0.0007 | G2: =F2^2 -> 4.9e-07 | H2: =(C2-$E$13) -> 0.0002115384615 | I2: =H2^2 -> 4.474852071e-08 | J2: =D2*I2 -> 1.72109695e-09
A3: 2 | B3: 300000 | C3: 0.049 | D3: =B3/$B$13 -> 0.1153846154 | E3: =C3*D3 -> 0.005653846154 | F3: =(C3-$D$16) -> -0.0023 | G3: =F3^2 -> 5.29e-06 | H3: =(C3-$E$13) -> -0.002788461538 | I3: =H3^2 -> 7.775517751e-06 | J3: =D3*I3 -> 8.971751252e-07
A4: 3 | B4: 200000 | C4: 0.055 | D4: 0.07692307692 | E4: 0.004230769231 | F4: 0.0037 | G4: 1.369e-05 | H4: 0.003211538462 | I4: 1.031397929e-05 | J4: 7.933830223e-07
A5: 4 | B5: 500000 | C5: 0.056 | D5: 0.1923076923 | E5: 0.01076923077 | F5: 0.0047 | G5: 2.209e-05 | H5: 0.004211538462 | I5: 1.773705621e-05 | J5: 3.410972349e-06
A6: 5 | B6: 100000 | C6: 0.051 | D6: 0.03846153846 | E6: 0.001961538462 | F6: -0.0003 | G6: 9e-08 | H6: -0.0007884615385 | I6: 6.216715976e-07 | J6: 2.391044606e-08
A7: 6 | B7: 250000 | C7: 0.047 | D7: 0.09615384615 | E7: 0.004519230769 | F7: -0.0043 | G7: 1.849e-05 | H7: -0.004788461538 | I7: 2.292936391e-05 | J7: 2.204746529e-06
A8: 7 | B8: 450000 | C8: 0.052 | D8: 0.1730769231 | E8: 0.009 | F8: 0.0007 | G8: 4.9e-07 | H8: 0.0002115384615 | I8: 4.474852071e-08 | J8: 7.744936277e-09
A9: 8 | B9: 200000 | C9: 0.048 | D9: 0.07692307692 | E9: 0.003692307692 | F9: -0.0033 | G9: 1.089e-05 | H9: -0.003788461538 | I9: 1.435244083e-05 | J9: 1.10403391e-06
A10: 9 | B10: 300000 | C10: 0.053 | D10: 0.1153846154 | E10: 0.006115384615 | F10: 0.0017 | G10: 2.89e-06 | H10: 0.001211538462 | I10: 1.467825444e-06 | J10: 1.693644743e-07
A11: 10 | B11: 200000 | C11: 0.05 | D11: 0.07692307692 | E11: 0.003846153846 | F11: -0.0013 | G11: 1.69e-06 | H11: -0.001788461538 | I11: 3.198594675e-06 | J11: 2.460457442e-07
A12: Sample formulas for portfolio 10 | D12: =B11/$B$13 | E12: =C11*D11 | F12: =(C11-$D$16) | G12: =F11^2 | H12: =(C11-$E$13) | I12: =H11^2 | J12: =D11*I11
A13: Sum (Portfolios 1 -10) | B13: =SUM(B2:B11) -> 2600000 | D13: =SUM(D2:D12) -> 1 | E13: =SUM(E2:E11) -> 0.05178846154 | J13: =SUM(J2:J11) -> 8.859097633e-06
C15: Asset Weighted Mean | D15: =E13 -> 0.05178846154 | E15: =E13
C16: Equal Weighted Mean | D16: =AVERAGE(C2:C11) -> 0.0513 | E16: =AVERAGE(C2:C11)
C17: Count of Portfolios | D17: =COUNT(C2:C11) -> 10 | E17: =COUNT(C2:C11)
C18: Sum of Squared Differences (to equal weighted mean) | D18: =SUM(G2:G11) -> 7.61e-05 | E18: =SUM(G2:G11)
C19: Sum of Squared Differences (to asset weighted mean) | D19: =SUM(I2:I11) -> 7.848594675e-05 | E19: =SUM(I2:I11)
C20: Equal Weighted Standard Deviation | D20: =SQRT(D18/D17) -> 0.002758622845 | E20: =SQRT(D18/D17)
C21: Asset Weighted Standard Deviation | D21: =SQRT(J13) -> 0.002976423631 | E21: =SQRT(J13)
C22: High | D22: =MAX(C2:C11) -> 0.056 | E22: =MAX(C2:C11)
C23: Low | D23: =MIN(C2:C11) -> 0.047 | E23: =MIN(C2:C11)
C24: Range | D24: =D22-D23 -> 0.009 | E24: =D22-D23
C25: First Quartile Return | D25: =QUARTILE(C2:C11,3) -> 0.05275 | E25: =QUARTILE(C2:C11,3)
C26: Third Quartile Return | D26: =QUARTILE(C2:C11,1) -> 0.04925 | E26: =QUARTILE(C2:C11,1)
C27: Interquartile Range | D27: =D25-D26 -> 0.0035 | E27: =D25-D26

Sheet 4.A.1.j, 3-yr ex post std dev
B1: Monthly | C1: Monthly | F1: 3-Yr Ex-Post Std Dev
B2: Composite Net Return | C2: Benchmark Return | F2: Composite | G2: Index
A3: 2018-01-31 | B3: 0.013 | C3: 0.0141 | F3: =STDEVP(B3:B38)*SQRT(12) -> 0.02642978118 | G3: =STDEVP(C3:C38)*SQRT(12) -> 0.02740328447 | H3: <-Using STDEVP Excel function | I3: (Calculate the standard deviation based on the population)
A4: 2018-02-28 | B4: 0.0091 | C4: 0.0098 | F4: =STDEV(B3:B38)*SQRT(12) -> 0.02680469042 | G4: =STDEV(C3:C38)*SQRT(12) -> 0.02779200296 | H4: <-Using STDEV Excel function | I4: (Calculate the standard deviation based on a sample)
A5: 2018-03-31 | B5: 0.0045 | C5: 0.0049
A6: 2018-04-30 | B6: 0.0058 | C6: 0.0064
A7: 2018-05-31 | B7: 0.0133 | C7: 0.0137
A8: 2018-06-30 | B8: 0.0045 | C8: 0.0051
A9: 2018-07-31 | B9: 0.0166 | C9: 0.0166
A10: 2018-08-31 | B10: -0.0035 | C10: -0.0046
A11: 2018-09-30 | B11: 0.005 | C11: 0.0051
A12: 2018-10-31 | B12: 0.008 | C12: 0.0069
A13: 2018-11-30 | B13: 0.01 | C13: 0.0099
A14: 2018-12-31 | B14: 0.0032 | C14: 0.0009
A15: 2019-01-31 | B15: 0.0125 | C15: 0.0135
A16: 2019-02-28 | B16: 0.0034 | C16: 0.0058
A17: 2019-03-31 | B17: 0.0145 | C17: 0.0149
A18: 2019-04-30 | B18: 0.015 | C18: 0.0144
A19: 2019-05-31 | B19: 0.0133 | C19: 0.0127
A20: 2019-06-30 | B20: 0.0045 | C20: 0.0051
A21: 2019-07-31 | B21: 0.0023 | C21: 0.0034
A22: 2019-08-31 | B22: -0.0035 | C22: -0.0046
A23: 2019-09-30 | B23: 0.0077 | C23: 0.0067
A24: 2019-10-31 | B24: 0.0098 | C24: 0.0145
A25: 2019-11-30 | B25: 0.0082 | C25: 0.0079
A26: 2019-12-31 | B26: -0.0054 | C26: -0.0008
A27: 2020-01-31 | B27: 0.0115 | C27: 0.0115
A28: 2020-02-29 | B28: -0.0134 | C28: -0.0148
A29: 2020-03-31 | B29: -0.0135 | C29: -0.0139
A30: 2020-04-30 | B30: 0.0162 | C30: 0.0154
A31: 2020-05-31 | B31: 0.005 | C31: 0.0055
A32: 2020-06-30 | B32: -0.0045 | C32: -0.0051
A33: 2020-07-31 | B33: 0.0017 | C33: 0.0024
A34: 2020-08-31 | B34: -0.0035 | C34: -0.0046
A35: 2020-09-30 | B35: 0.0077 | C35: 0.0067
A36: 2020-10-31 | B36: 0.0133 | C36: 0.0145
A37: 2020-11-30 | B37: 0.009 | C37: 0.0107
A38: 2020-12-31 | B38: -0.0021 | C38: -0.0018
